fUST/lending_fUST_20241118
["ID","MTS","AMOUNT","RATE_DAILY","PERIOD"]
[342509413,1731945063729,-256.164602,0.0001589,2]
[342509414,1731945063739,-642.85,0.0001589,2]
[342509415,1731945063756,-593.07,0.0001589,2]
[342509416,1731945063767,-2864.24,0.0001589,2]
[342509417,1731945063777,-500.0,0.0001589,2]
[342509418,1731945063787,-756.35,0.0001589,2]
[342509419,1731945063796,-1284.28,0.0001589,2]
[342509420,1731945063807,-910.43,0.0001589,2]
[342509421,1731945063818,-912.58,0.0001589,2]
[342509422,1731945063828,-1835.75,0.0001589,2]
[342509423,1731945063838,-2501.18,0.0001589,2]
[342509424,1731945063848,-500.0,0.0001589,2]
[342509425,1731945063858,-500.0,0.0001589,2]
[342509426,1731945063867,-500.0,0.0001589,2]
[342509427,1731945063877,-164.99577007,0.0001589,2]
[342509428,1731945063887,-637.64,0.0001589,2]
[342509429,1731945063898,-500.0,0.0001589,2]
[342509430,1731945063908,-985.47,0.0001589,2]
[342509431,1731945063918,-7259.95,0.0001589,2]
[342509432,1731945063928,-10552.15,0.0001589,2]
[342509433,1731945063937,-2343.41,0.0001589,2]
[342509434,1731945063947,-1194.08,0.0001589,2]
[342509435,1731945063957,-500.0,0.0001589,2]
[342509436,1731945063967,-549.96,0.0001589,2]
[342509437,1731945063977,-500.0,0.0001589,2]
[342509438,1731945063987,-1321.64,0.0001589,2]
[342509439,1731945064000,-150.0,0.00016,2]
[342509440,1731945064010,-587.0,0.00016057,2]
[342509441,1731945064020,-600.0,0.00016128,2]
[342509442,1731945064030,-500.0,0.00016164,2]
[342509443,1731945064039,-500.0,0.00016164,2]
[342509444,1731945064049,-500.0,0.00016164,2]
[342509445,1731945064059,-500.0,0.00016164,2]
[342509446,1731945064069,-500.0,0.00016164,2]
[342509447,1731945064078,-500.0,0.00016164,2]
[342509448,1731945064088,-1448.23,0.00016164,2]
[342509449,1731945064097,-538.05,0.00016164,2]
[342509450,1731945064107,-500.0,0.00016164,2]
[342509451,1731945064116,-805.44,0.00016164,2]
[342509452,1731945064126,-949.0,0.00016164,2]
[342509453,1731945064135,-1009.56,0.00016164,2]
[342509454,1731945064145,-1786.68,0.00016164,2]
[342509455,1731945064155,-500.0,0.00016164,2]
[342509456,1731945064165,-500.0,0.00016164,2]
[342509457,1731945064175,-524.35,0.00016164,2]
[342509458,1731945064184,-522.05,0.00016164,2]
[342509459,1731945064193,-500.0,0.00016164,2]
[342509460,1731945064202,-500.0,0.00016164,2]
[342509461,1731945064211,-598.35,0.00016164,2]
[342509462,1731945064221,-531.56,0.00016164,2]
[342509463,1731945064231,-227.87535365,0.00016164,2]
[342509464,1731945064240,-500.0,0.00016164,2]
[342509465,1731945064254,-500.0,0.00016164,2]
[342509466,1731945064264,-562.67,0.00016164,2]
[342509467,1731945064277,-658.68,0.00016164,2]
[342509468,1731945064291,-524.52,0.00016164,2]
[342509469,1731945064300,-500.0,0.00016164,2]
[342509470,1731945064310,-865.31,0.00016164,2]
[342509471,1731945064320,-587.26,0.00016164,2]
[342509472,1731945064331,-701.88,0.00016164,2]
[342509473,1731945064341,-500.0,0.00016164,2]
[342509474,1731945064351,-2199.65,0.00016164,2]
[342509475,1731945064361,-500.0,0.00016164,2]
[342509476,1731945064371,-513.0,0.00016164,2]
[342509477,1731945064381,-500.0,0.00016164,2]
[342509478,1731945064391,-5817.01,0.00016164,2]
[342509479,1731945064400,-642.85,0.00016164,2]
[342509480,1731945064410,-593.07,0.00016164,2]
[342509481,1731945064420,-2864.24,0.00016164,2]
[342509482,1731945064430,-500.0,0.00016164,2]
[342509483,1731945064439,-756.35,0.00016164,2]
[342509484,1731945064449,-1284.28,0.00016164,2]
[342509485,1731945064459,-910.43,0.00016164,2]
[342509486,1731945064469,-912.58,0.00016164,2]
[342509487,1731945064479,-1835.75,0.00016164,2]
[342509488,1731945064489,-2501.18,0.00016164,2]
[342509489,1731945064501,-500.0,0.00016164,2]
[342509490,1731945064512,-500.0,0.00016164,2]
[342509491,1731945064522,-500.0,0.00016164,2]
[342509492,1731945064532,-500.0,0.00016164,2]
[342509493,1731945064542,-985.47,0.00016164,2]
[342509494,1731945064554,-7259.95,0.00016164,2]
[342509495,1731945064565,-10552.15,0.00016164,2]
[342509496,1731945064575,-2343.41,0.00016164,2]
[342509497,1731945064585,-1194.08,0.00016164,2]
[342509498,1731945064596,-500.0,0.00016164,2]
[342509499,1731945064607,-549.96,0.00016164,2]
[342509500,1731945064618,-539.04931157,0.00016164,2]
[342509501,1731945064628,-1321.64,0.00016164,2]
[342509502,1731945064638,-1043.69152911,0.00016202,2]
[342509503,1731945064648,-1000.0,0.00016202,2]
[342509504,1731945064658,-1166.79017246,0.00016296,2]
[342509505,1731945064669,-151.0,0.00016438,2]
[342509506,1731945064679,-500.0,0.00016438,2]
[342509507,1731945064689,-500.0,0.00016438,2]
[342509508,1731945064698,-500.0,0.00016438,2]
[342509509,1731945064708,-500.0,0.00016438,2]
[342509510,1731945064719,-500.0,0.00016438,2]
[342509511,1731945064729,-500.0,0.00016438,2]
[342509512,1731945064739,-1448.23,0.00016438,2]
[342509513,1731945064749,-538.05,0.00016438,2]
[342509514,1731945064759,-500.0,0.00016438,2]
[342509515,1731945064768,-805.44,0.00016438,2]
[342509516,1731945064777,-949.0,0.00016438,2]
[342509517,1731945064789,-1009.56,0.00016438,2]
[342509518,1731945064798,-1786.68,0.00016438,2]
[342509519,1731945064808,-500.0,0.00016438,2]
[342509520,1731945064817,-524.35,0.00016438,2]
[342509521,1731945064826,-522.05,0.00016438,2]
[342509522,1731945064836,-500.0,0.00016438,2]
[342509523,1731945064846,-500.0,0.00016438,2]
[342509524,1731945064855,-598.35,0.00016438,2]
[342509525,1731945064865,-531.56,0.00016438,2]
[342509526,1731945064874,-500.0,0.00016438,2]
[342509527,1731945064884,-500.0,0.00016438,2]
[342509528,1731945064894,-562.67,0.00016438,2]
[342509529,1731945064903,-658.68,0.00016438,2]
[342509530,1731945064914,-524.52,0.00016438,2]
[342509531,1731945064924,-200.0,0.00016438,2]
[342509532,1731945064934,-500.0,0.00016438,2]
[342509533,1731945064944,-200.0,0.00016438,2]
[342509534,1731945064954,-200.0,0.00016438,2]
[342509535,1731945064964,-200.0,0.00016438,2]
[342509536,1731945064974,-200.0,0.00016438,2]
[342509537,1731945064984,-865.31,0.00016438,2]
[342509538,1731945064996,-200.0,0.00016438,2]
[342509539,1731945065006,-200.0,0.00016438,2]
[342509540,1731945065016,-200.0,0.00016438,2]
[342509541,1731945065025,-200.0,0.00016438,2]
[342509542,1731945065036,-200.0,0.00016438,2]
[342509543,1731945065046,-200.0,0.00016438,2]
[342509544,1731945065056,-587.26,0.00016438,2]
[342509545,1731945065066,-701.88,0.00016438,2]
[342509546,1731945065076,-500.0,0.00016438,2]
[342509547,1731945065086,-2199.65,0.00016438,2]
[342509548,1731945065097,-500.0,0.00016438,2]
[342509549,1731945065107,-513.0,0.00016438,2]
[342509550,1731945065118,-500.0,0.00016438,2]
[342509551,1731945065128,-5817.01,0.00016438,2]
[342509552,1731945065138,-642.85,0.00016438,2]
[342509553,1731945065148,-593.07,0.00016438,2]
[342509554,1731945065158,-2864.24,0.00016438,2]
[342509555,1731945065167,-500.0,0.00016438,2]
[342509556,1731945065177,-756.35,0.00016438,2]
[342509557,1731945065187,-1284.28,0.00016438,2]
[342509558,1731945065197,-910.43,0.00016438,2]
[342509559,1731945065207,-912.58,0.00016438,2]
[342509560,1731945065218,-1835.75,0.00016438,2]
[342509561,1731945065228,-2501.18,0.00016438,2]
[342509562,1731945065238,-500.0,0.00016438,2]
[342509563,1731945065250,-500.0,0.00016438,2]
[342509564,1731945065260,-500.0,0.00016438,2]
[342509565,1731945065270,-500.0,0.00016438,2]
[342509566,1731945065279,-985.47,0.00016438,2]
[342509567,1731945065293,-7259.95,0.00016438,2]
[342509568,1731945065303,-10552.15,0.00016438,2]
[342509569,1731945065312,-2343.41,0.00016438,2]
[342509570,1731945065323,-1194.08,0.00016438,2]
[342509571,1731945065334,-339.93048878,0.00016438,2]
[342509572,1731945065344,-549.96,0.00016438,2]
[342509573,1731945065354,-1321.64,0.00016438,2]
[342509574,1731945065367,-152.759871,0.00016438,2]
[342509575,1731945065376,-502.56736069,0.00016573,2]
[342509576,1731945065386,-500.0,0.00016573,2]
[342509577,1731945065397,-500.0,0.00016573,2]
[342509578,1731945065407,-606560.42442987,0.000166,2]
[342509579,1731945065416,-561.22,0.000166,2]
[342509580,1731945065426,-1347.30668633,0.00016632,2]
[342509581,1731945065439,-500.94981022,0.00016673,2]
[342509582,1731945065449,-300.0,0.000167,6]
[342509583,1731945065459,-500.0,0.00016712,2]
[342509584,1731945065468,-500.0,0.00016712,2]
[342509585,1731945065477,-567.73422485,0.00016712,2]
[342509586,1731945065487,-500.0,0.00016712,2]
[342509587,1731945065498,-500.0,0.00016712,2]
[342509588,1731945065507,-286.66617322,0.00016712,2]
[342509589,1731945065517,-1448.23,0.00016712,2]
[342509590,1731945065526,-538.05,0.00016712,2]
[342509591,1731945065536,-504.17322315,0.00016712,2]
[342509592,1731945065546,-805.44,0.00016712,2]
[342509593,1731945065556,-949.0,0.00016712,2]
[342509594,1731945065566,-1009.56,0.00016712,2]
[342509595,1731945065576,-1786.68,0.00016712,2]
[342509596,1731945065585,-500.0,0.00016712,2]
[342509597,1731945065596,-524.35,0.00016712,2]
[342509598,1731945065606,-522.05,0.00016712,2]
[342509599,1731945065615,-500.0,0.00016712,2]
[342509600,1731945065626,-500.0,0.00016712,2]
[342509601,1731945065636,-598.35,0.00016712,2]
[342509602,1731945065646,-531.56,0.00016712,2]
[342509603,1731945065655,-500.0,0.00016712,2]
[342509604,1731945065665,-500.0,0.00016712,2]
[342509605,1731945065675,-562.67,0.00016712,2]
[342509606,1731945065685,-658.68,0.00016712,2]
[342509607,1731945065696,-524.52,0.00016712,2]
[342509608,1731945065707,-500.0,0.00016712,2]
[342509609,1731945065717,-865.31,0.00016712,2]
[342509610,1731945065727,-200.0,0.00016712,2]
[342509611,1731945065736,-587.26,0.00016712,2]
[342509612,1731945065747,-701.88,0.00016712,2]
[342509613,1731945065756,-500.0,0.00016712,2]
[342509614,1731945065766,-2199.65,0.00016712,2]
[342509615,1731945065776,-500.0,0.00016712,2]
[342509616,1731945065785,-513.0,0.00016712,2]
[342509617,1731945065795,-500.0,0.00016712,2]
[342509618,1731945065804,-5817.01,0.00016712,2]
[342509619,1731945065815,-642.85,0.00016712,2]
[342509620,1731945065824,-593.07,0.00016712,2]
[342509621,1731945065835,-2864.24,0.00016712,2]
[342509622,1731945065844,-500.0,0.00016712,2]
[342509623,1731945065854,-756.35,0.00016712,2]
[342509624,1731945065864,-1284.28,0.00016712,2]
[342509625,1731945065874,-910.43,0.00016712,2]
[342509626,1731945065883,-912.58,0.00016712,2]
[342509627,1731945065894,-1835.75,0.00016712,2]
[342509628,1731945065904,-2501.18,0.00016712,2]
[342509629,1731945065913,-500.0,0.00016712,2]
[342509630,1731945065924,-500.0,0.00016712,2]
[342509631,1731945065934,-500.0,0.00016712,2]
[342509632,1731945065944,-500.0,0.00016712,2]
[342509633,1731945065954,-985.47,0.00016712,2]
[342509634,1731945065963,-7259.95,0.00016712,2]
[342509635,1731945065973,-10552.15,0.00016712,2]
[342509636,1731945065983,-2343.41,0.00016712,2]
[342509637,1731945065992,-1194.08,0.00016712,2]
[342509638,1731945066003,-549.96,0.00016712,2]
[342509639,1731945066013,-1321.64,0.00016712,2]
[342509640,1731945066023,-500.0,0.00016876,2]
[342509641,1731945066032,-151.0,0.00016876,2]
[342509642,1731945066041,-3200.0,0.00016876,2]
[342509643,1731945066051,-500.0,0.00016986,2]
[342509644,1731945066188,-500.0,0.00016986,2]
[342509645,1731945066221,-500.0,0.00016986,2]
[342509646,1731945066231,-226.95837086,0.00016986,2]
[342509647,1731945066241,-1448.23,0.00016986,2]
[342509648,1731945066253,-538.05,0.00016986,2]
[342509649,1731945066263,-805.44,0.00016986,2]
[342509650,1731945066276,-949.0,0.00016986,2]
[342509651,1731945066287,-1009.56,0.00016986,2]
[342509652,1731945066297,-1786.68,0.00016986,2]
[342509653,1731945066306,-500.0,0.00016986,2]
[342509654,1731945066316,-524.35,0.00016986,2]
[342509655,1731945066328,-522.05,0.00016986,2]
[342509656,1731945066338,-179.58055834,0.00016986,2]
[342509657,1731945066347,-500.0,0.00016986,2]
[342509658,1731945066358,-598.35,0.00016986,2]
[342509659,1731945066368,-531.56,0.00016986,2]
[342509660,1731945066378,-500.0,0.00016986,2]
[342509661,1731945066388,-500.0,0.00016986,2]
[342509662,1731945066398,-562.67,0.00016986,2]
[342509663,1731945066408,-658.68,0.00016986,2]
[342509664,1731945066418,-524.52,0.00016986,2]
[342509665,1731945066428,-561.63236063,0.00016986,2]
[342509666,1731945066438,-865.31,0.00016986,2]
[342509667,1731945066449,-200.0,0.00016986,2]
[342509668,1731945066459,-587.26,0.00016986,2]
[342509669,1731945066469,-701.88,0.00016986,2]
[342509670,1731945066479,-500.0,0.00016986,2]
[342509671,1731945066488,-2199.65,0.00016986,2]
[342509672,1731945066499,-606.17,0.00016986,2]
[342509673,1731945066509,-513.0,0.00016986,2]
[342509674,1731945066523,-500.0,0.00016986,2]
[342509675,1731945066534,-5817.01,0.00016986,2]
[342509676,1731945066543,-642.85,0.00016986,2]
[342509677,1731945066553,-593.07,0.00016986,2]
[342509678,1731945066565,-2864.24,0.00016986,2]
[342509679,1731945066575,-500.0,0.00016986,2]
[342509680,1731945066586,-756.35,0.00016986,2]
[342509681,1731945066597,-1284.28,0.00016986,2]
[342509682,1731945066608,-910.43,0.00016986,2]
[342509683,1731945066620,-912.58,0.00016986,2]
[342509684,1731945066630,-1835.75,0.00016986,2]
[342509685,1731945066641,-2501.18,0.00016986,2]
[342509686,1731945066652,-500.0,0.00016986,2]
[342509687,1731945066662,-500.0,0.00016986,2]
[342509688,1731945066673,-500.0,0.00016986,2]
[342509689,1731945066682,-500.0,0.00016986,2]
[342509690,1731945066693,-985.47,0.00016986,2]
[342509691,1731945066703,-7259.95,0.00016986,2]
[342509692,1731945066714,-10552.15,0.00016986,2]
[342509693,1731945066724,-2343.41,0.00016986,2]
[342509694,1731945066733,-1194.08,0.00016986,2]
[342509695,1731945066744,-549.96,0.00016986,2]
[342509696,1731945066760,-1321.64,0.00016986,2]
[342509697,1731945066770,-264.20751,0.00017047,2]
[342509698,1731945066779,-334.369898,0.00017047,2]
[342509699,1731945066789,-171.657386,0.00017047,2]
[342509701,1731945066798,-559.385014,0.00017047,2]
[342509702,1731945066808,-706.764374,0.00017047,2]
[342509703,1731945066817,-479.745456,0.00017047,2]
[342509704,1731945066827,-870.842662,0.00017047,2]
[342509705,1731945066836,-171.657386,0.00017047,2]
[342509706,1731945066846,-295.177504,0.00017047,2]
[342509707,1731945066855,-158.906524,0.00017047,2]
[342509708,1731945066865,-157.567141,0.00017047,2]
[342509709,1731945066875,-150.0,0.00017259,2]
[342509710,1731945066884,-530.0,0.00017259,2]
[342509711,1731945066894,-2385.0,0.00017259,2]
[342509712,1731945066903,-1110.0,0.00017259,2]
[342509713,1731945066913,-500.0,0.0001726,2]
[342509714,1731945066922,-500.0,0.0001726,2]
[342509715,1731945066932,-500.0,0.0001726,2]
[342509716,1731945066942,-1448.23,0.0001726,2]
[342509717,1731945066951,-538.05,0.0001726,2]
[342509718,1731945066961,-805.44,0.0001726,2]
[342509719,1731945066971,-949.0,0.0001726,2]
[342509720,1731945066981,-1009.56,0.0001726,2]
[342509721,1731945066990,-1786.68,0.0001726,2]
[342509722,1731945067002,-500.0,0.0001726,2]
[342509723,1731945067011,-524.35,0.0001726,2]
[342509724,1731945067021,-522.05,0.0001726,2]
[342509725,1731945067030,-500.0,0.0001726,2]
[342509726,1731945067040,-598.35,0.0001726,2]
[342509727,1731945067050,-531.56,0.0001726,2]
[342509728,1731945067061,-500.0,0.0001726,2]
[342509729,1731945067071,-500.0,0.0001726,2]
[342509730,1731945067081,-562.67,0.0001726,2]
[342509731,1731945067090,-658.68,0.0001726,2]
[342509732,1731945067100,-524.52,0.0001726,2]
[342509733,1731945067110,-865.31,0.0001726,2]
[342509734,1731945067120,-200.0,0.0001726,2]
[342509735,1731945067130,-587.26,0.0001726,2]
[342509736,1731945067139,-701.88,0.0001726,2]
[342509737,1731945067149,-500.0,0.0001726,2]
[342509738,1731945067159,-2199.65,0.0001726,2]
[342509739,1731945067169,-513.0,0.0001726,2]
[342509740,1731945067179,-561.24,0.0001726,2]
[342509741,1731945067188,-5817.01,0.0001726,2]
[342509742,1731945067198,-642.85,0.0001726,2]
[342509743,1731945067207,-593.07,0.0001726,2]
[342509744,1731945067218,-2864.24,0.0001726,2]
[342509745,1731945067228,-500.0,0.0001726,2]
[342509746,1731945067238,-756.35,0.0001726,2]
[342509747,1731945067251,-1284.28,0.0001726,2]
[342509748,1731945067261,-910.43,0.0001726,2]
[342509749,1731945067271,-912.58,0.0001726,2]
[342509750,1731945067281,-1835.75,0.0001726,2]
[342509751,1731945067296,-2501.18,0.0001726,2]
[342509752,1731945067306,-500.0,0.0001726,2]
[342509753,1731945067315,-500.0,0.0001726,2]
[342509754,1731945067325,-500.0,0.0001726,2]
[342509755,1731945067335,-500.0,0.0001726,2]
[342509756,1731945067345,-985.47,0.0001726,2]
[342509757,1731945067355,-7259.95,0.0001726,2]
[342509758,1731945067367,-10552.15,0.0001726,2]
[342509759,1731945067377,-2343.41,0.0001726,2]
[342509760,1731945067387,-1194.08,0.0001726,2]
[342509761,1731945067397,-549.96,0.0001726,2]
[342509762,1731945067406,-1321.64,0.0001726,2]
[342509763,1731945067415,-264.20751,0.0001726,2]
[342509764,1731945067424,-334.369898,0.0001726,2]
[342509765,1731945067434,-559.385014,0.0001726,2]
[342509766,1731945067443,-706.764374,0.0001726,2]
[342509767,1731945067452,-479.745456,0.0001726,2]
[342509768,1731945067462,-870.842662,0.0001726,2]
[342509769,1731945067471,-295.177504,0.0001726,2]
[342509770,1731945067481,-158.906524,0.00017331,2]
[342509771,1731945067491,-264.20751,0.00017473,2]
[342509772,1731945067505,-334.369898,0.00017473,2]
[342509773,1731945067514,-559.385014,0.00017473,2]
[342509774,1731945067524,-706.764374,0.00017473,2]
[342509775,1731945067533,-479.745456,0.00017473,2]
[342509776,1731945067543,-870.842662,0.00017473,2]
[342509777,1731945067553,-295.177504,0.00017473,2]
[342509778,1731945067563,-539.34,0.000175,3]
[342509779,1731945067574,-500.0,0.000175,4]
[342509780,1731945067583,-500.0,0.00017534,2]
[342509781,1731945067594,-500.0,0.00017534,2]
[342509782,1731945067604,-441.58853602,0.00017534,2]
[342509783,1731945067614,-1448.23,0.00017534,2]
[342509784,1731945067627,-538.05,0.00017534,2]
[342509785,1731945067641,-805.44,0.00017534,2]
[342509786,1731945067663,-949.0,0.00017534,2]
[342509787,1731945067673,-1009.56,0.00017534,2]
[342509788,1731945067683,-1786.68,0.00017534,2]
[342509789,1731945067693,-500.0,0.00017534,2]
[342509790,1731945067702,-524.35,0.00017534,2]
[342509791,1731945067712,-522.05,0.00017534,2]
[342509792,1731945067721,-500.0,0.00017534,2]
[342509793,1731945067732,-598.35,0.00017534,2]
[342509794,1731945067742,-531.56,0.00017534,2]
[342509795,1731945067755,-500.0,0.00017534,2]
[342509796,1731945067765,-500.0,0.00017534,2]
[342509797,1731945067774,-562.67,0.00017534,2]
[342509798,1731945067783,-658.68,0.00017534,2]
[342509799,1731945067794,-524.52,0.00017534,2]
[342509800,1731945067803,-865.31,0.00017534,2]
[342509801,1731945067814,-200.0,0.00017534,2]
[342509802,1731945067823,-587.26,0.00017534,2]
[342509803,1731945067833,-701.88,0.00017534,2]
[342509804,1731945067843,-500.0,0.00017534,2]
[342509805,1731945067852,-2199.65,0.00017534,2]
[342509806,1731945067862,-513.0,0.00017534,2]
[342509807,1731945067871,-5817.01,0.00017534,2]
[342509808,1731945067880,-642.85,0.00017534,2]
[342509809,1731945067890,-593.07,0.00017534,2]
[342509810,1731945067900,-2864.24,0.00017534,2]
[342509811,1731945067909,-500.0,0.00017534,2]
[342509812,1731945067919,-756.35,0.00017534,2]
[342509813,1731945067929,-1284.28,0.00017534,2]
[342509814,1731945067939,-910.43,0.00017534,2]
[342509815,1731945067949,-912.58,0.00017534,2]
[342509816,1731945067960,-1835.75,0.00017534,2]
[342509817,1731945067971,-2501.18,0.00017534,2]
[342509818,1731945067980,-347.41910069,0.00017534,2]
[342509819,1731945067990,-500.0,0.00017534,2]
[342509820,1731945068002,-500.0,0.00017534,2]
[342509821,1731945068012,-500.0,0.00017534,2]
[342509822,1731945068022,-985.47,0.00017534,2]
[342509823,1731945068032,-7259.95,0.00017534,2]
[342509824,1731945068043,-10552.15,0.00017534,2]
[342509825,1731945068052,-2343.41,0.00017534,2]
[342509826,1731945068062,-1194.08,0.00017534,2]
[342509827,1731945068072,-549.96,0.00017534,2]
[342509828,1731945068081,-1321.64,0.00017534,2]
[342509829,1731945068091,-823.0,0.00017603,2]
[342509830,1731945068101,-158.906524,0.00017615,2]
[342509831,1731945068110,-264.20751,0.00017686,2]
[342509832,1731945068120,-334.369898,0.00017686,2]
[342509833,1731945068130,-559.385014,0.00017686,2]
[342509834,1731945068139,-706.764374,0.00017686,2]
[342509835,1731945068149,-479.745456,0.00017686,2]
[342509836,1731945068158,-870.842662,0.00017686,2]
[342509837,1731945068167,-295.177504,0.00017686,2]
[342509838,1731945068177,-500.0,0.00017801,2]
[342509839,1731945068187,-500.0,0.00017808,2]
[342509840,1731945068196,-500.0,0.00017808,2]
[342509841,1731945068205,-1448.23,0.00017808,2]
[342509842,1731945068214,-538.05,0.00017808,2]
[342509843,1731945068224,-805.44,0.00017808,2]
[342509844,1731945068233,-949.0,0.00017808,2]
[342509845,1731945068242,-1009.56,0.00017808,2]
[342509846,1731945068255,-1786.68,0.00017808,2]
[342509847,1731945068265,-500.0,0.00017808,2]
[342509848,1731945068275,-524.35,0.00017808,2]
[342509849,1731945068286,-522.05,0.00017808,2]
[342509850,1731945068295,-500.0,0.00017808,2]
[342509851,1731945068305,-598.35,0.00017808,2]
[342509852,1731945068315,-531.56,0.00017808,2]
[342509853,1731945068325,-500.0,0.00017808,2]
[342509854,1731945068335,-590.50391444,0.00017808,2]
[342509855,1731945068345,-562.67,0.00017808,2]
[342509856,1731945068355,-658.68,0.00017808,2]
[342509857,1731945068367,-524.52,0.00017808,2]
[342509858,1731945068377,-151.0,0.00017808,2]
[342509859,1731945068387,-865.31,0.00017808,2]
[342509860,1731945068397,-200.0,0.00017808,2]
[342509861,1731945068407,-587.26,0.00017808,2]
[342509862,1731945068416,-701.88,0.00017808,2]
[342509863,1731945068426,-500.0,0.00017808,2]
[342509864,1731945068435,-2199.65,0.00017808,2]
[342509865,1731945068445,-513.0,0.00017808,2]
[342509866,1731945068455,-5817.01,0.00017808,2]
[342509867,1731945068464,-642.85,0.00017808,2]
[342509868,1731945068474,-593.07,0.00017808,2]
[342509869,1731945068484,-2864.24,0.00017808,2]
[342509870,1731945068494,-500.0,0.00017808,2]
[342509871,1731945068506,-756.35,0.00017808,2]
[342509872,1731945068516,-1284.28,0.00017808,2]
[342509873,1731945068527,-910.43,0.00017808,2]
[342509874,1731945068537,-912.58,0.00017808,2]
[342509875,1731945068547,-1835.75,0.00017808,2]
[342509876,1731945068558,-2501.18,0.00017808,2]
[342509877,1731945068567,-500.0,0.00017808,2]
[342509878,1731945068577,-441.67,0.00017808,2]
[342509879,1731945068587,-500.0,0.00017808,2]
[342509880,1731945068597,-985.47,0.00017808,2]
[342509881,1731945068607,-7259.95,0.00017808,2]
[342509882,1731945068617,-10552.15,0.00017808,2]
[342509883,1731945068628,-2343.41,0.00017808,2]
[342509884,1731945068638,-1194.08,0.00017808,2]
[342509885,1731945068648,-549.96,0.00017808,2]
[342509886,1731945068658,-1321.64,0.00017808,2]
[342509887,1731945068668,-164.832538,0.00017808,2]
[342509888,1731945068677,-164.832538,0.00017808,2]
[342509889,1731945068686,-164.832538,0.00017808,2]
[342509890,1731945068696,-164.832538,0.00017808,2]
[342509891,1731945068705,-164.832538,0.00017808,2]
[342509892,1731945068714,-164.832538,0.00017808,2]
[342509893,1731945068724,-164.832538,0.00017808,2]
[342509894,1731945068733,-164.832538,0.00017808,2]
[342509895,1731945068743,-164.832538,0.00017808,2]
[342509896,1731945068757,-164.832538,0.00017808,2]
[342509897,1731945068767,-164.832538,0.00017808,2]
[342509898,1731945068777,-164.832538,0.00017808,2]
[342509899,1731945068786,-164.832538,0.00017808,2]
[342509900,1731945068796,-164.832538,0.00017808,2]
[342509901,1731945068805,-164.832538,0.00017808,2]
[342509902,1731945068815,-164.832538,0.00017808,2]
[342509903,1731945068824,-164.832538,0.00017808,2]
[342509904,1731945068834,-164.832538,0.00017808,2]
[342509905,1731945068844,-164.832538,0.00017808,2]
[342509906,1731945068853,-164.832528,0.00017808,2]
[342509907,1731945068862,-157.567141,0.00017899,2]
[342509908,1731945068872,-264.20751,0.00017899,2]
[342509909,1731945068881,-334.369898,0.00017899,2]
[342509910,1731945068891,-559.385014,0.00017899,2]
[342509911,1731945068900,-706.764374,0.00017899,2]
[342509912,1731945068909,-479.745456,0.00017899,2]
[342509913,1731945068919,-870.842662,0.00017899,2]